fUST/lending_fUST_20250626
["ID","MTS","AMOUNT","RATE_DAILY","PERIOD"]
[367611224,1750872643861,-460.0,0.00016438,2]
[367611226,1750872643871,-460.0,0.00016438,2]
[367611228,1750872643882,-460.0,0.00016438,2]
[367611230,1750872643892,-460.0,0.00016438,2]
[367611231,1750872643901,-510.01214265,0.00016438,2]
[367611233,1750872643911,-1055.6,0.00016438,2]
[367611235,1750872643920,-460.0,0.00016438,2]
[367611237,1750872643929,-460.0,0.00016438,2]
[367611239,1750872643938,-460.0,0.00016438,2]
[367611241,1750872643948,-460.0,0.00016438,2]
[367611242,1750872643958,-707.38,0.00016438,2]
[367611243,1750872643967,-460.0,0.00016438,2]
[367611244,1750872643975,-463.59804792,0.00016438,2]
[367611245,1750872643986,-500.0,0.00016438,2]
[367611246,1750872643995,-168.0,0.00016451,2]
[367611247,1750872644005,-500.0,0.00016465,2]
[367611248,1750872644014,-151.0,0.00016465,2]
[367611249,1750872644024,-151.0,0.00016465,2]
[367611250,1750872644033,-151.0,0.00016465,2]
[367611251,1750872644042,-151.0,0.00016465,2]
[367611252,1750872644051,-500.0,0.00016465,2]
[367611253,1750872644060,-237.02162087,0.00016465,2]
[367611254,1750872644070,-500.0,0.00016465,2]
[367611255,1750872644079,-500.0,0.00016493,2]
[367611256,1750872644088,-205.39835402,0.00016493,2]
[367611257,1750872644097,-151.0,0.00016493,2]
[367611258,1750872644106,-151.0,0.00016493,2]
[367611259,1750872644116,-632.02187268,0.00016493,2]
[367611260,1750872644126,-500.0,0.00016493,2]
[367611262,1750872644135,-500.0,0.0001652,2]
[367611263,1750872644144,-644.31427749,0.0001652,2]
[367611264,1750872644154,-500.0,0.00016548,2]
[367611265,1750872644163,-500.0,0.00016575,2]
[367611266,1750872644172,-500.0,0.00016602,2]
[367611267,1750872644181,-1358.29567131,0.00016612,2]
[367611268,1750872644191,-500.0,0.0001663,2]
[367611269,1750872644200,-500.0,0.00016657,2]
[367611270,1750872644210,-500.0,0.00016685,2]
[367611271,1750872644219,-500.0,0.00016712,2]
[367611272,1750872644228,-460.0,0.00016712,2]
[367611273,1750872644238,-436.76516133,0.00016712,2]
[367611274,1750872644247,-460.0,0.00016712,2]
[367611275,1750872644257,-460.0,0.00016712,2]
[367611276,1750872644266,-460.0,0.00016712,2]
[367611277,1750872644276,-432.42281114,0.00016712,2]
[367611278,1750872644285,-460.0,0.00016712,2]
[367611279,1750872644294,-460.0,0.00016712,2]
[367611280,1750872644303,-460.0,0.00016712,2]
[367611281,1750872644313,-460.0,0.00016712,2]
[367611282,1750872644323,-460.0,0.00016712,2]
[367611283,1750872644332,-460.0,0.00016712,2]
[367611284,1750872644341,-601.80947835,0.00016712,2]
[367611285,1750872644350,-460.0,0.00016712,2]
[367611286,1750872644360,-460.0,0.00016712,2]
[367611287,1750872644370,-460.0,0.00016712,2]
[367611288,1750872644380,-460.0,0.00016712,2]
[367611289,1750872644389,-460.0,0.00016712,2]
[367611290,1750872644399,-460.0,0.00016712,2]
[367611291,1750872644408,-460.0,0.00016712,2]
[367611292,1750872644417,-460.0,0.00016712,2]
[367611293,1750872644427,-460.0,0.00016712,2]
[367611294,1750872644436,-460.0,0.00016712,2]
[367611295,1750872644446,-460.0,0.00016712,2]
[367611296,1750872644455,-460.0,0.00016712,2]
[367611297,1750872644465,-460.0,0.00016712,2]
[367611298,1750872644475,-460.0,0.00016712,2]
[367611299,1750872644484,-460.0,0.00016712,2]
[367611300,1750872644640,-460.0,0.00016712,2]
[367611301,1750872644650,-460.0,0.00016712,2]
[367611302,1750872644660,-460.0,0.00016712,2]
[367611303,1750872644669,-460.0,0.00016712,2]
[367611304,1750872644678,-460.0,0.00016712,2]
[367611305,1750872644687,-460.0,0.00016712,2]
[367611306,1750872644697,-460.0,0.00016712,2]
[367611307,1750872644707,-460.0,0.00016712,2]
[367611308,1750872644716,-460.0,0.00016712,2]
[367611309,1750872644726,-460.0,0.00016712,2]
[367611310,1750872644737,-460.0,0.00016712,2]
[367611311,1750872644747,-460.0,0.00016712,2]
[367611312,1750872644756,-460.0,0.00016712,2]
[367611313,1750872644766,-500.0,0.00016712,2]
[367611314,1750872644775,-460.0,0.00016712,2]
[367611315,1750872644785,-460.0,0.00016712,2]
[367611316,1750872644794,-460.0,0.00016712,2]
[367611317,1750872644804,-460.0,0.00016712,2]
[367611318,1750872644814,-460.0,0.00016712,2]
[367611319,1750872644824,-460.0,0.00016712,2]
[367611320,1750872644833,-460.0,0.00016712,2]
[367611321,1750872644843,-460.0,0.00016712,2]
[367611322,1750872644852,-460.0,0.00016712,2]
[367611323,1750872644861,-460.0,0.00016712,2]
[367611324,1750872644871,-460.0,0.00016712,2]
[367611325,1750872644883,-460.0,0.00016712,2]
[367611326,1750872644892,-460.0,0.00016712,2]
[367611327,1750872644901,-460.0,0.00016712,2]
[367611328,1750872644911,-460.0,0.00016712,2]
[367611329,1750872644920,-596.07,0.00016712,2]
[367611330,1750872644929,-460.0,0.00016712,2]
[367611331,1750872644939,-287.22,0.00016712,2]
[367611332,1750872644948,-460.0,0.00016712,2]
[367611333,1750872644957,-500.0,0.00016712,2]
[367611334,1750872644966,-460.0,0.00016712,2]
[367611335,1750872644976,-460.0,0.00016712,2]
[367611336,1750872644985,-768.57,0.00016712,2]
[367611337,1750872644994,-460.0,0.00016712,2]
[367611338,1750872645004,-460.0,0.00016712,2]
[367611339,1750872645014,-460.0,0.00016712,2]
[367611340,1750872645023,-460.0,0.00016712,2]
[367611341,1750872645032,-759.26,0.00016712,2]
[367611342,1750872645041,-460.0,0.00016712,2]
[367611343,1750872645051,-460.0,0.00016712,2]
[367611344,1750872645060,-460.0,0.00016712,2]
[367611345,1750872645069,-460.0,0.00016712,2]
[367611346,1750872645079,-463.60919068,0.00016712,2]
[367611347,1750872645088,-460.0,0.00016712,2]
[367611348,1750872645097,-460.0,0.00016712,2]
[367611349,1750872645106,-305.28,0.00016712,2]
[367611350,1750872645116,-1200.78,0.00016712,2]
[367611351,1750872645125,-460.0,0.00016712,2]
[367611352,1750872645135,-460.0,0.00016712,2]
[367611353,1750872645144,-460.0,0.00016712,2]
[367611354,1750872645153,-460.0,0.00016712,2]
[367611355,1750872645162,-460.0,0.00016712,2]
[367611356,1750872645171,-460.0,0.00016712,2]
[367611357,1750872645180,-460.0,0.00016712,2]
[367611358,1750872645189,-498.51,0.00016712,2]
[367611359,1750872645199,-460.0,0.00016712,2]
[367611360,1750872645208,-522.83,0.00016712,2]
[367611361,1750872645218,-460.0,0.00016712,2]
[367611362,1750872645227,-460.0,0.00016712,2]
[367611363,1750872645237,-460.0,0.00016712,2]
[367611364,1750872645247,-165.82536997,0.00016712,2]
[367611365,1750872645256,-460.0,0.00016712,2]
[367611366,1750872645265,-460.0,0.00016712,2]
[367611367,1750872645275,-460.0,0.00016712,2]
[367611368,1750872645284,-460.0,0.00016712,2]
[367611369,1750872645294,-460.0,0.00016712,2]
[367611370,1750872645303,-460.0,0.00016712,2]
[367611371,1750872645313,-460.0,0.00016712,2]
[367611372,1750872645322,-486.66459454,0.00016712,2]
[367611373,1750872645331,-460.0,0.00016712,2]
[367611374,1750872645341,-601.63883088,0.00016712,2]
[367611375,1750872645351,-460.0,0.00016712,2]
[367611376,1750872645361,-460.0,0.00016712,2]
[367611377,1750872645370,-460.0,0.00016712,2]
[367611378,1750872645379,-460.0,0.00016712,2]
[367611379,1750872645388,-460.0,0.00016712,2]
[367611380,1750872645398,-460.0,0.00016712,2]
[367611381,1750872645408,-468.98957639,0.00016712,2]
[367611382,1750872645418,-460.0,0.00016712,2]
[367611383,1750872645427,-460.0,0.00016712,2]
[367611384,1750872645436,-460.0,0.00016712,2]
[367611385,1750872645445,-460.0,0.00016712,2]
[367611386,1750872645454,-460.0,0.00016712,2]
[367611387,1750872645463,-460.0,0.00016712,2]
[367611388,1750872645473,-457.63209664,0.00016712,2]
[367611389,1750872645482,-460.0,0.00016712,2]
[367611390,1750872645492,-488.41,0.00016712,2]
[367611391,1750872645501,-460.0,0.00016712,2]
[367611392,1750872645510,-460.0,0.00016712,2]
[367611393,1750872645519,-460.0,0.00016712,2]
[367611394,1750872645529,-460.0,0.00016712,2]
[367611395,1750872645538,-460.0,0.00016712,2]
[367611396,1750872645547,-154.46,0.00016712,2]
[367611397,1750872645557,-381.91729601,0.00016712,2]
[367611398,1750872645566,-405.64,0.00016712,2]
[367611399,1750872645575,-460.0,0.00016712,2]
[367611400,1750872645585,-460.0,0.00016712,2]
[367611401,1750872645594,-424.40665604,0.00016712,2]
[367611402,1750872645603,-496.82,0.00016712,2]
[367611403,1750872645612,-460.0,0.00016712,2]
[367611404,1750872645621,-537.3,0.00016712,2]
[367611405,1750872645630,-460.0,0.00016712,2]
[367611406,1750872645639,-460.0,0.00016712,2]
[367611407,1750872645648,-460.0,0.00016712,2]
[367611408,1750872645657,-460.0,0.00016712,2]
[367611409,1750872645667,-196.28363374,0.00016712,2]
[367611410,1750872645676,-460.0,0.00016712,2]
[367611411,1750872645686,-460.0,0.00016712,2]
[367611412,1750872645695,-193.60071197,0.00016712,2]
[367611413,1750872645705,-460.0,0.00016712,2]
[367611414,1750872645714,-460.0,0.00016712,2]
[367611415,1750872645723,-460.0,0.00016712,2]
[367611416,1750872645732,-460.0,0.00016712,2]
[367611417,1750872645742,-460.0,0.00016712,2]
[367611418,1750872645751,-460.0,0.00016712,2]
[367611419,1750872645760,-460.0,0.00016712,2]
[367611420,1750872645769,-460.0,0.00016712,2]
[367611421,1750872645778,-460.0,0.00016712,2]
[367611422,1750872645787,-460.0,0.00016712,2]
[367611423,1750872645796,-460.0,0.00016712,2]
[367611424,1750872645805,-460.0,0.00016712,2]
[367611425,1750872645815,-460.0,0.00016712,2]
[367611426,1750872645824,-570.73,0.00016712,2]
[367611427,1750872645833,-460.0,0.00016712,2]
[367611428,1750872645842,-460.0,0.00016712,2]
[367611429,1750872645852,-460.0,0.00016712,2]
[367611430,1750872645861,-460.0,0.00016712,2]
[367611431,1750872645870,-460.0,0.00016712,2]
[367611432,1750872645884,-499.58,0.00016712,2]
[367611433,1750872645893,-460.0,0.00016712,2]
[367611434,1750872645903,-460.0,0.00016712,2]
[367611435,1750872645912,-482.54,0.00016712,2]
[367611436,1750872645922,-426.51163785,0.00016712,2]
[367611437,1750872645931,-460.0,0.00016712,2]
[367611438,1750872645941,-279.53,0.00016712,2]
[367611439,1750872645951,-462.12264985,0.00016712,2]
[367611440,1750872645960,-460.0,0.00016712,2]
[367611441,1750872645970,-460.0,0.00016712,2]
[367611442,1750872645979,-460.0,0.00016712,2]
[367611443,1750872645988,-460.0,0.00016712,2]
[367611444,1750872645998,-460.0,0.00016712,2]
[367611445,1750872646007,-299.61,0.00016712,2]
[367611447,1750872646016,-460.0,0.00016712,2]
[367611448,1750872646025,-460.0,0.00016712,2]
[367611450,1750872646034,-460.0,0.00016712,2]
[367611452,1750872646044,-460.0,0.00016712,2]
[367611454,1750872646053,-460.0,0.00016712,2]
[367611456,1750872646062,-464.08057131,0.00016712,2]
[367611458,1750872646071,-460.0,0.00016712,2]
[367611460,1750872646081,-1855.62,0.00016712,2]
[367611462,1750872646090,-383.5571818,0.00016712,2]
[367611464,1750872646099,-435.04,0.00016712,2]
[367611465,1750872646108,-1253.47,0.00016712,2]
[367611468,1750872646118,-460.0,0.00016712,2]
[367611469,1750872646127,-3008.39,0.00016712,2]
[367611471,1750872646136,-517.07,0.00016712,2]
[367611474,1750872646145,-460.0,0.00016712,2]
[367611476,1750872646154,-460.0,0.00016712,2]
[367611477,1750872646164,-500.0,0.00016712,2]
[367611479,1750872646173,-460.0,0.00016712,2]
[367611481,1750872646182,-460.0,0.00016712,2]
[367611484,1750872646193,-460.0,0.00016712,2]
[367611485,1750872646202,-460.0,0.00016712,2]
[367611487,1750872646212,-2593.65,0.00016712,2]
[367611489,1750872646221,-1047.33,0.00016712,2]
[367611492,1750872646231,-477.85,0.00016712,2]
[367611493,1750872646241,-572.85,0.00016712,2]
[367611495,1750872646250,-460.0,0.00016712,2]
[367611497,1750872646259,-461.15,0.00016712,2]
[367611499,1750872646269,-460.0,0.00016712,2]
[367611501,1750872646278,-3755.75,0.00016712,2]
[367611503,1750872646288,-460.0,0.00016712,2]
[367611506,1750872646298,-460.0,0.00016712,2]
[367611508,1750872646308,-460.0,0.00016712,2]
[367611510,1750872646317,-4122.46,0.00016712,2]
[367611512,1750872646326,-645.89,0.00016712,2]
[367611513,1750872646336,-460.0,0.00016712,2]
[367611516,1750872646345,-567.97,0.00016712,2]
[367611517,1750872646355,-460.0,0.00016712,2]
[367611520,1750872646364,-460.0,0.00016712,2]
[367611522,1750872646373,-460.0,0.00016712,2]
[367611524,1750872646384,-460.0,0.00016712,2]
[367611526,1750872646393,-460.0,0.00016712,2]
[367611528,1750872646402,-460.0,0.00016712,2]
[367611530,1750872646411,-460.0,0.00016712,2]
[367611532,1750872646421,-460.0,0.00016712,2]
[367611534,1750872646430,-460.0,0.00016712,2]
[367611535,1750872646439,-198.70633996,0.00016712,2]
[367611538,1750872646450,-460.0,0.00016712,2]
[367611541,1750872646468,-460.0,0.00016712,2]
[367611543,1750872646482,-1700.67,0.00016712,2]
[367611545,1750872646492,-467.6,0.00016712,2]
[367611547,1750872646502,-460.0,0.00016712,2]
[367611549,1750872646511,-460.0,0.00016712,2]
[367611551,1750872646522,-460.0,0.00016712,2]
[367611553,1750872646531,-465.07298662,0.00016712,2]
[367611555,1750872646541,-460.0,0.00016712,2]
[367611558,1750872646552,-2709.82,0.00016712,2]
[367611559,1750872646561,-460.0,0.00016712,2]
[367611562,1750872646570,-3209.32,0.00016712,2]
[367611564,1750872646579,-460.0,0.00016712,2]
[367611566,1750872646589,-460.0,0.00016712,2]
[367611568,1750872646598,-460.0,0.00016712,2]
[367611570,1750872646607,-1072.75,0.00016712,2]
[367611572,1750872646617,-460.0,0.00016712,2]
[367611574,1750872646627,-460.0,0.00016712,2]
[367611576,1750872646637,-152.84,0.00016712,2]
[367611578,1750872646647,-460.0,0.00016712,2]
[367611580,1750872646657,-151.0,0.00016712,2]
[367611582,1750872646667,-460.0,0.00016712,2]
[367611584,1750872646676,-460.0,0.00016712,2]
[367611586,1750872646686,-460.0,0.00016712,2]
[367611588,1750872646695,-460.0,0.00016712,2]
[367611590,1750872646705,-460.0,0.00016712,2]
[367611592,1750872646715,-460.0,0.00016712,2]
[367611594,1750872646724,-3480.43,0.00016712,2]
[367611596,1750872646734,-1565.24,0.00016712,2]
[367611598,1750872646743,-460.0,0.00016712,2]
[367611600,1750872646752,-460.0,0.00016712,2]
[367611602,1750872646761,-683.63,0.00016712,2]
[367611604,1750872646771,-460.0,0.00016712,2]
[367611606,1750872646780,-460.0,0.00016712,2]
[367611608,1750872646789,-460.0,0.00016712,2]
[367611610,1750872646800,-608.68,0.00016712,2]
[367611612,1750872646811,-1409.86,0.00016712,2]
[367611615,1750872646822,-460.0,0.00016712,2]
[367611616,1750872646831,-460.0,0.00016712,2]
[367611617,1750872646841,-823.56,0.00016712,2]
[367611618,1750872646850,-460.0,0.00016712,2]
[367611619,1750872646859,-1035.91,0.00016712,2]
[367611620,1750872646868,-460.0,0.00016712,2]
[367611621,1750872646878,-401.80451971,0.00016712,2]
[367611622,1750872646887,-460.0,0.00016712,2]
[367611623,1750872646897,-539.32,0.00016712,2]
[367611624,1750872646906,-460.0,0.00016712,2]
[367611625,1750872646916,-460.0,0.00016712,2]
[367611626,1750872646925,-460.0,0.00016712,2]
[367611627,1750872646934,-151.0,0.00016712,2]
[367611628,1750872646943,-151.394358,0.00016712,2]
[367611629,1750872646952,-460.0,0.00016712,2]
[367611630,1750872646961,-460.0,0.00016712,2]
[367611631,1750872646970,-472.97,0.00016712,2]
[367611632,1750872646979,-1678.89,0.00016712,2]
[367611633,1750872646989,-460.0,0.00016712,2]
[367611634,1750872646998,-460.0,0.00016712,2]
[367611635,1750872647007,-460.0,0.00016712,2]
[367611636,1750872647017,-460.0,0.00016712,2]
[367611638,1750872647026,-497.29,0.00016712,2]
[367611639,1750872647035,-309.01,0.00016712,2]
[367611641,1750872647045,-503.36,0.00016712,2]
[367611643,1750872647054,-954.13,0.00016712,2]
[367611645,1750872647063,-461.30949241,0.00016712,2]
[367611647,1750872647073,-2662.82,0.00016712,2]
[367611649,1750872647083,-460.0,0.00016712,2]
[367611652,1750872647092,-460.0,0.00016712,2]
[367611653,1750872647102,-460.0,0.00016712,2]
[367611654,1750872647111,-460.0,0.00016712,2]
[367611655,1750872647120,-675.08,0.00016712,2]
[367611656,1750872647130,-799.82,0.00016712,2]
[367611657,1750872647139,-205.97525582,0.00016712,2]
[367611658,1750872647148,-460.0,0.00016712,2]
[367611660,1750872647158,-460.0,0.00016712,2]
[367611662,1750872647167,-460.0,0.00016712,2]
[367611664,1750872647176,-460.0,0.00016712,2]
[367611666,1750872647186,-769.54,0.00016712,2]
[367611668,1750872647195,-809.04,0.00016712,2]
[367611670,1750872647205,-1230.8,0.00016712,2]
[367611672,1750872647214,-460.0,0.00016712,2]
[367611674,1750872647223,-460.0,0.00016712,2]
[367611676,1750872647233,-460.0,0.00016712,2]
[367611678,1750872647243,-460.0,0.00016712,2]
[367611680,1750872647252,-460.0,0.00016712,2]
[367611682,1750872647262,-460.0,0.00016712,2]
[367611684,1750872647271,-394.31052857,0.00016712,2]
[367611686,1750872647281,-1710.27,0.00016712,2]
[367611688,1750872647291,-631.38,0.00016712,2]
[367611690,1750872647300,-1868.64,0.00016712,2]
[367611692,1750872647310,-460.0,0.00016712,2]
[367611694,1750872647319,-460.0,0.00016712,2]
[367611696,1750872647329,-460.0,0.00016712,2]
[367611698,1750872647339,-460.0,0.00016712,2]
[367611700,1750872647348,-341.17,0.00016712,2]
[367611702,1750872647357,-460.0,0.00016712,2]
[367611704,1750872647367,-460.0,0.00016712,2]
[367611706,1750872647375,-273.72,0.00016712,2]
[367611708,1750872647385,-460.0,0.00016712,2]
[367611710,1750872647395,-1081.41,0.00016712,2]
[367611712,1750872647405,-151.0,0.00016712,2]
[367611714,1750872647414,-460.0,0.00016712,2]
[367611716,1750872647424,-570.06,0.00016712,2]
[367611719,1750872647434,-460.0,0.00016712,2]
[367611721,1750872647443,-460.0,0.00016712,2]
[367611722,1750872647453,-460.0,0.00016712,2]
[367611725,1750872647463,-460.0,0.00016712,2]
[367611727,1750872647473,-398.02,0.00016712,2]
[367611729,1750872647483,-460.0,0.00016712,2]
[367611731,1750872647493,-460.0,0.00016712,2]
[367611732,1750872647502,-460.0,0.00016712,2]
[367611733,1750872647511,-460.0,0.00016712,2]
[367611734,1750872647521,-460.0,0.00016712,2]
[367611735,1750872647530,-460.0,0.00016712,2]
[367611736,1750872647540,-151.0,0.00016712,2]
[367611737,1750872647550,-460.0,0.00016712,2]
[367611738,1750872647559,-460.0,0.00016712,2]
[367611739,1750872647569,-460.0,0.00016712,2]
[367611740,1750872647579,-460.0,0.00016712,2]
[367611741,1750872647588,-389.97145123,0.00016712,2]
[367611742,1750872647597,-1055.6,0.00016712,2]
[367611743,1750872647607,-460.0,0.00016712,2]
[367611744,1750872647615,-707.38,0.00016712,2]
[367611745,1750872647625,-460.0,0.00016712,2]
[367611746,1750872647635,-500.0,0.00016739,2]
[367611747,1750872647644,-500.0,0.00016767,2]
[367611748,1750872647653,-642.0,0.00016794,2]
[367611749,1750872647663,-1358.29567131,0.00016886,2]
[367611750,1750872647672,-168.0,0.00016893,2]
[367611751,1750872647682,-151.0,0.000169,2]
[367611752,1750872647691,-151.0,0.000169,2]
[367611753,1750872647700,-151.0,0.000169,2]
[367611754,1750872647710,-151.0,0.000169,2]
[367611755,1750872647720,-151.0,0.000169,2]
[367611756,1750872647729,-4085.61089756,0.000169,2]
[367611757,1750872647738,-478.61214098,0.00016986,2]
[367611758,1750872647748,-461.55883868,0.00016986,2]
[367611759,1750872647758,-520.12,0.00016986,2]
[367611760,1750872647767,-506.38,0.00016986,2]
[367611761,1750872647776,-470.40793418,0.00016986,2]
[367611762,1750872647785,-460.0,0.00016986,2]
[367611763,1750872647794,-460.0,0.00016986,2]
[367611764,1750872647804,-209.78,0.00016986,2]
[367611765,1750872647813,-460.0,0.00016986,2]
[367611766,1750872647823,-460.0,0.00016986,2]
[367611767,1750872647832,-460.0,0.00016986,2]
[367611768,1750872647841,-460.0,0.00016986,2]
[367611769,1750872647850,-460.0,0.00016986,2]
[367611770,1750872647860,-460.0,0.00016986,2]
[367611771,1750872647869,-460.0,0.00016986,2]
[367611772,1750872647882,-460.0,0.00016986,2]
[367611773,1750872647891,-460.0,0.00016986,2]
[367611774,1750872647900,-460.0,0.00016986,2]
[367611775,1750872647909,-460.0,0.00016986,2]
[367611776,1750872647922,-461.90156881,0.00016986,2]
[367611777,1750872647930,-460.0,0.00016986,2]
[367611778,1750872647939,-460.0,0.00016986,2]
[367611779,1750872647949,-460.0,0.00016986,2]
[367611780,1750872647959,-460.0,0.00016986,2]
[367611781,1750872647970,-460.0,0.00016986,2]
[367611782,1750872647979,-429.60260954,0.00016986,2]
[367611783,1750872647989,-460.0,0.00016986,2]
[367611784,1750872647999,-460.0,0.00016986,2]
[367611785,1750872648008,-500.0,0.00016986,2]
[367611786,1750872648193,-169.66,0.00016986,2]
[367611787,1750872648203,-163.48428246,0.00016986,2]
[367611788,1750872648213,-460.0,0.00016986,2]
[367611789,1750872648223,-460.0,0.00016986,2]
[367611790,1750872648232,-460.0,0.00016986,2]
[367611791,1750872648243,-460.0,0.00016986,2]
[367611792,1750872648252,-209.88,0.00016986,2]
[367611793,1750872648262,-576.3,0.00016986,2]
[367611794,1750872648272,-460.0,0.00016986,2]
[367611795,1750872648281,-460.0,0.00016986,2]
[367611796,1750872648290,-460.0,0.00016986,2]
[367611797,1750872648299,-479.35,0.00016986,2]
[367611798,1750872648309,-462.27803661,0.00016986,2]
[367611799,1750872648318,-460.0,0.00016986,2]
[367611800,1750872648328,-768.57,0.00016986,2]
[367611801,1750872648338,-460.0,0.00016986,2]
[367611802,1750872648347,-759.26,0.00016986,2]
[367611803,1750872648361,-460.0,0.00016986,2]
[367611804,1750872648370,-460.0,0.00016986,2]
[367611805,1750872648380,-460.0,0.00016986,2]
[367611806,1750872648389,-1200.78,0.00016986,2]
[367611807,1750872648399,-460.0,0.00016986,2]
[367611808,1750872648409,-515.81,0.00016986,2]
[367611809,1750872648419,-460.0,0.00016986,2]
[367611810,1750872648429,-460.0,0.00016986,2]
[367611811,1750872648439,-460.0,0.00016986,2]
[367611812,1750872648448,-460.0,0.00016986,2]
[367611813,1750872648458,-460.0,0.00016986,2]
[367611814,1750872648469,-460.0,0.00016986,2]
[367611815,1750872648479,-460.0,0.00016986,2]
[367611816,1750872648489,-460.0,0.00016986,2]
[367611817,1750872648498,-578.98,0.00016986,2]
[367611818,1750872648508,-151.000001,0.00016986,2]
[367611819,1750872648518,-321.06,0.00016986,2]
[367611820,1750872648527,-460.0,0.00016986,2]
[367611821,1750872648536,-460.0,0.00016986,2]
[367611822,1750872648546,-347.22,0.00016986,2]
[367611823,1750872648555,-460.0,0.00016986,2]
[367611824,1750872648564,-488.41,0.00016986,2]
[367611825,1750872648574,-460.0,0.00016986,2]
[367611826,1750872648583,-460.0,0.00016986,2]
[367611827,1750872648593,-460.0,0.00016986,2]
[367611828,1750872648602,-151.0,0.00016986,2]
[367611829,1750872648612,-516.27,0.00016986,2]
[367611830,1750872648621,-460.0,0.00016986,2]
[367611831,1750872648630,-460.0,0.00016986,2]
[367611832,1750872648640,-460.0,0.00016986,2]
[367611833,1750872648649,-460.0,0.00016986,2]
[367611834,1750872648659,-460.0,0.00016986,2]
[367611835,1750872648669,-151.0,0.00016986,2]
[367611836,1750872648678,-463.07934772,0.00016986,2]
[367611837,1750872648688,-460.0,0.00016986,2]
[367611838,1750872648698,-460.0,0.00016986,2]
[367611839,1750872648708,-460.0,0.00016986,2]
[367611840,1750872648717,-582.57369683,0.00016986,2]
[367611841,1750872648726,-460.0,0.00016986,2]
[367611842,1750872648735,-464.86376789,0.00016986,2]
[367611843,1750872648745,-464.96,0.00016986,2]
[367611844,1750872648754,-571.76,0.00016986,2]
[367611845,1750872648763,-460.0,0.00016986,2]
[367611846,1750872648773,-570.73,0.00016986,2]
[367611847,1750872648782,-460.0,0.00016986,2]
[367611848,1750872648791,-460.0,0.00016986,2]
[367611849,1750872648801,-300.11,0.00016986,2]
[367611850,1750872648810,-254.054618,0.00016986,2]
[367611851,1750872648819,-254.054618,0.00016986,2]
[367611852,1750872648828,-402.27685195,0.00016986,2]
[367611853,1750872648838,-151.0,0.00016986,2]
[367611854,1750872648847,-463.17737824,0.00016986,2]
[367611855,1750872648857,-460.0,0.00016986,2]
[367611856,1750872648866,-151.0,0.00016986,2]
[367611857,1750872648879,-482.54,0.00016986,2]
[367611858,1750872648888,-179.842334,0.00016986,2]
[367611859,1750872648898,-460.0,0.00016986,2]
[367611860,1750872648907,-179.842334,0.00016986,2]
[367611861,1750872648917,-460.0,0.00016986,2]
[367611862,1750872648926,-466.70690613,0.00016986,2]
[367611863,1750872648936,-460.0,0.00016986,2]